Workbook

Sheet Intro
K2: comment
K3: inputs
K4: outputs
K5: Solver variables
K6: Solver objective

Sheet Cascade
A1: stage | B1: threshold | C1: det index | D1: det prob | E1: cum det | F1: false prob | G1: cum false | H1: cost
A2: 1 | B2: -0.26889278 | C2: 1 | D2: =1-NORMSDIST(B2-SQRT(C2)) -> 0.8977603461 | E2: =D2 -> 0.8977603461 | F2: =1-NORMSDIST(B2) -> 0.6059939034 | G2: =F2 -> 0.6059939034 | H2: 1
A3: 2 | B3: -0.8362427604 | C3: 1 | D3: =1-NORMSDIST(B3-SQRT(C3)) -> 0.9668391194 | E3: =E2*D3 -> 0.8679898225 | F3: =1-NORMSDIST(B3) -> 0.7984908264 | G3: =G2*F3 -> 0.4838805728 | H3: 1
A4: 3 | B4: -1.390655826 | C4: 1 | D4: =1-NORMSDIST(B4-SQRT(C4)) -> 0.9915908447 | E4: =E3*D4 -> 0.8606907613 | F4: =1-NORMSDIST(B4) -> 0.9178350905 | G4: =G3*F4 -> 0.4441225693 | H4: 1
A5: 4 | B5: -2.154753128 | C5: 1 | D5: =1-NORMSDIST(B5-SQRT(C5)) -> 0.9991968302 | E5: =E4*D5 -> 0.8599994805 | F5: =1-NORMSDIST(B5) -> 0.984409421 | G5: =G4*F5 -> 0.4371984413 | H5: 1
D6: PD>>>> | E6: 0.86 | G6: CBAR>>> | H6: =SUMPRODUCT(G2:G5,H2:H5) -> 1.971195487

Sheet CounterDet
A2: Searcher speed (V) | B2: 10
A3: Target Speed (U) | B3: 2
A4: Detection Radius (R) | B4: 1
A5: Counterdetection (S) | B5: 2
A7: Avoidance width (W) | B7: =2*IF($B$4>=$B$5,$B$4,IF($B$5*$B$3>=$B$2*$B$4,0,($B$4*SQRT($B$2^2-$B$3^2)-$B$3*SQRT($B$5^2-$B$4^2))/$B$2)) -> 1.266771471
A8: Approach width (W) | B8: =2*IF($B$4>=$B$5,$B$4,IF($B$3^2*$B$5^2+$B$2^2*$B$4^2>=$B$2^2*$B$5^2,$B$5,($B$4*SQRT($B$2^2-$B$3^2)+$B$3*SQRT($B$5^2-$B$4^2))/$B$2)) -> 2.652412117

Sheet Diffuse
H1: Diff>>> | I1: 0.2
B2: 0.1 | C2: 0.1 | D2: 0 | E2: 0 | G2: Time 0
B3: 0 | C3: 0.1 | D3: 0 | E3: 0
B4: 0 | C4: 0 | D4: 0.2 | E4: 0.1 | F4: Sums to | G4: =SUM(B2:E5) -> 1
B5: 0 | C5: 0 | D5: 0.4 | E5: 0
B8: =B2*(1-2*Diff)+B3*Diff+C2*Diff -> 0.08 | C8: =C2*(1-3*Diff)+C3*Diff+B2*Diff+D2*Diff -> 0.08 | D8: =D2*(1-3*Diff)+D3*Diff+C2*Diff+E2*Diff -> 0.02 | E8: =E2*(1-2*Diff)+E3*Diff+D2*Diff -> 0 | G8: Time 1
B9: =B3*(1-3*Diff)+B2*Diff+B4*Diff+C3*Diff -> 0.04 | C9: =C3*(1-4*Diff)+C2*Diff+C4*Diff+B3*Diff+D3*Diff -> 0.04 | D9: =D3*(1-4*Diff)+D2*Diff+D4*Diff+C3*Diff+E3*Diff -> 0.06 | E9: =E3*(1-3*Diff)+E2*Diff+E4*Diff+D3*Diff+F3*Diff -> 0.02
B10: =B4*(1-3*Diff)+B3*Diff+B5*Diff+C4*Diff -> 0 | C10: =C4*(1-4*Diff)+C3*Diff+C5*Diff+B4*Diff+D4*Diff -> 0.06 | D10: =D4*(1-4*Diff)+D3*Diff+D5*Diff+C4*Diff+E4*Diff -> 0.14 | E10: =E4*(1-3*Diff)+E3*Diff+E5*Diff+D4*Diff -> 0.08 | F10: Sums to | G10: =SUM(B8:E11) -> 1
B11: =B5*(1-2*Diff)+B4*Diff+C5*Diff -> 0 | C11: =C5*(1-3*Diff)+C4*Diff+B5*Diff+D5*Diff -> 0.08 | D11: =D5*(1-3*Diff)+D4*Diff+C5*Diff+E5*Diff -> 0.2 | E11: =E5*(1-2*Diff)+E4*Diff+D5*Diff -> 0.1
B14: =B8*(1-2*Diff)+B9*Diff+C8*Diff -> 0.072 | C14: =C8*(1-3*Diff)+C9*Diff+B8*Diff+D8*Diff -> 0.06 | D14: =D8*(1-3*Diff)+D9*Diff+C8*Diff+E8*Diff -> 0.036 | E14: =E8*(1-2*Diff)+E9*Diff+D8*Diff -> 0.008 | G14: Time 2
B15: =B9*(1-3*Diff)+B8*Diff+B10*Diff+C9*Diff -> 0.04 | C15: =C9*(1-4*Diff)+C8*Diff+C10*Diff+B9*Diff+D9*Diff -> 0.056 | D15: =D9*(1-4*Diff)+D8*Diff+D10*Diff+C9*Diff+E9*Diff -> 0.056 | E15: =E9*(1-3*Diff)+E8*Diff+E10*Diff+D9*Diff+F9*Diff -> 0.036
B16: =B10*(1-3*Diff)+B9*Diff+B11*Diff+C10*Diff -> 0.02 | C16: =C10*(1-4*Diff)+C9*Diff+C11*Diff+B10*Diff+D10*Diff -> 0.064 | D16: =D10*(1-4*Diff)+D9*Diff+D11*Diff+C10*Diff+E10*Diff -> 0.108 | E16: =E10*(1-3*Diff)+E9*Diff+E11*Diff+D10*Diff -> 0.084 | F16: Sums to | G16: =SUM(B14:E17) -> 1
B17: =B11*(1-2*Diff)+B10*Diff+C11*Diff -> 0.016 | C17: =C11*(1-3*Diff)+C10*Diff+B11*Diff+D11*Diff -> 0.084 | D17: =D11*(1-3*Diff)+D10*Diff+C11*Diff+E11*Diff -> 0.144 | E17: =E11*(1-2*Diff)+E10*Diff+D11*Diff -> 0.116
B20: =B14*(1-2*Diff)+B15*Diff+C14*Diff -> 0.0632 | C20: =C14*(1-3*Diff)+C15*Diff+B14*Diff+D14*Diff -> 0.0568 | D20: =D14*(1-3*Diff)+D15*Diff+C14*Diff+E14*Diff -> 0.0392 | E20: =E14*(1-2*Diff)+E15*Diff+D14*Diff -> 0.0192 | G20: Time 3
B21: =B15*(1-3*Diff)+B14*Diff+B16*Diff+C15*Diff -> 0.0456 | C21: =C15*(1-4*Diff)+C14*Diff+C16*Diff+B15*Diff+D15*Diff -> 0.0552 | D21: =D15*(1-4*Diff)+D14*Diff+D16*Diff+C15*Diff+E15*Diff -> 0.0584 | E21: =E15*(1-3*Diff)+E14*Diff+E16*Diff+D15*Diff+F15*Diff -> 0.044
B22: =B16*(1-3*Diff)+B15*Diff+B17*Diff+C16*Diff -> 0.032 | C22: =C16*(1-4*Diff)+C15*Diff+C17*Diff+B16*Diff+D16*Diff -> 0.0664 | D22: =D16*(1-4*Diff)+D15*Diff+D17*Diff+C16*Diff+E16*Diff -> 0.0912 | E22: =E16*(1-3*Diff)+E15*Diff+E17*Diff+D16*Diff -> 0.0856 | F22: Sums to | G22: =SUM(B20:E23) -> 1
B23: =B17*(1-2*Diff)+B16*Diff+C17*Diff -> 0.0304 | C23: =C17*(1-3*Diff)+C16*Diff+B17*Diff+D17*Diff -> 0.0784 | D23: =D17*(1-3*Diff)+D16*Diff+C17*Diff+E17*Diff -> 0.1192 | E23: =E17*(1-2*Diff)+E16*Diff+D17*Diff -> 0.1152

Sheet DirFind
A1: include | B1: Theta | C1: d | D1: sigma | E1: a | F1: b | G1: h | H1: f | I1: g | J1: x | K1: y | L1: s1 | M1: s2 | N1: inclin
A2: 1 | B2: 0.262 | C2: 0.4 | D2: =123*0.025 -> 3.075 | E2: =IF(A2=1,SIN($B2)^2/$D2^2,0) -> 0.007094997851 | F2: =IF(A2=1,COS($B2)^2/$D2^2,0) -> 0.09866215728 | G2: =IF(A2=1,-COS($B2)*SIN($B2)/$D2^2,0) -> -0.0264576604 | H2: =IF(A2=1,-$C2*SIN($B2)/$D2^2,0) -> -0.01095698344 | I2: =IF(A2=1,$C2*COS($B2)/$D2^2,0) -> 0.0408592297 | J2: =(H2*F2-G2*I2)/(E2*F2-G2^2) ->  | K2: =(E2*I2-G2*H2)/(E2*F2-G2^2) ->  | L2: =SQRT(1/(($E2+$F2)/2-SQRT((($E2-$F2)/2)^2+$G2^2))) ->  | M2: =SQRT(1/(($E2+$F2)/2+SQRT((($E2-$F2)/2)^2+$G2^2))) -> 3.075 | N2: =IF(E2=F2, IF(G2>0,-PI()/4,PI()/4),IF(E2<F2,0.5*ATAN(2*G2/(E2-F2)),0.5*ATAN(2*G2/(F2-E2))+2*ATAN(1))) -> 0.262
A3: 1 | B3: -0.34 | C3: -1.4 | D3: =137*0.02 -> 2.74 | E3: =IF(A3=1,E2+SIN($B3)^2/$D3^2,E2) -> 0.02190847228 | F3: =IF(A3=1,F2+COS($B3)^2/$D3^2,F2) -> 0.2170470418 | G3: =IF(A3=1,G2-COS($B3)*SIN($B3)/$D3^2,G2) -> 0.01541943907 | H3: =IF(A3=1,H2-$C3*SIN($B3)/$D3^2,H2) -> -0.07314489023 | I3: =IF(A3=1,I2+$C3*COS($B3)/$D3^2,I2) -> -0.1349434944 | J3: -3.053769541 | K3: -0.4047789839 | L3: 6.950887684 | M3: 2.140498731 | N3: =IF(E3=F3, IF(G3>0,-PI()/4,PI()/4),IF(E3<F3,0.5*ATAN(2*G3/(E3-F3)),0.5*ATAN(2*G3/(F3-E3))+2*ATAN(1))) -> -0.07836974842
A4: 1 | B4: -0.667 | C4: 0.6 | D4: =127*0.015 -> 1.905 | E4: =IF(A4=1,E3+SIN($B4)^2/$D4^2,E3) -> 0.1273652324 | F4: =IF(A4=1,F3+COS($B4)^2/$D4^2,F3) -> 0.3871463884 | G4: =IF(A4=1,G3-COS($B4)*SIN($B4)/$D4^2,G3) -> 0.1493527284 | H4: =IF(A4=1,H3-$C4*SIN($B4)/$D4^2,H3) -> 0.02913576055 | I4: =IF(A4=1,I3+$C4*COS($B4)/$D4^2,I3) -> -0.005043960455 | J4: 0.4456261945 | K4: -0.1849415378 | L4: 4.105746839 | M4: 1.482189788 | N4: =IF(E4=F4, IF(G4>0,-PI()/4,PI()/4),IF(E4<F4,0.5*ATAN(2*G4/(E4-F4)),0.5*ATAN(2*G4/(F4-E4))+2*ATAN(1))) -> -0.4274908363
A5: 0 | E5: 0.1273652324 | F5: 0.3871463884 | G5: 0.1493527284 | H5: 0.02913576055 | I5: -0.005043960455 | J5: 0.4456261945 | K5: -0.1849415378 | L5: 4.105746839 | M5: 1.482189788 | N5: -0.4274908363
A6: 0 | E6: 0.1273652324 | F6: 0.3871463884 | G6: 0.1493527284 | H6: 0.02913576055 | I6: -0.005043960455 | J6: 0.4456261945 | K6: -0.1849415378 | L6: 4.105746839 | M6: 1.482189788 | N6: -0.4274908363
A7: 0 | E7: 0.1273652324 | F7: 0.3871463884 | G7: 0.1493527284 | H7: 0.02913576055 | I7: -0.005043960455 | J7: 0.4456261945 | K7: -0.1849415378 | L7: 4.105746839 | M7: 1.482189788 | N7: -0.4274908363
A8: 0 | E8: 0.1273652324 | F8: 0.3871463884 | G8: 0.1493527284 | H8: 0.02913576055 | I8: -0.005043960455 | J8: 0.4456261945 | K8: -0.1849415378 | L8: 4.105746839 | M8: 1.482189788 | N8: -0.4274908363
A9: 0 | E9: 0.1273652324 | F9: 0.3871463884 | G9: 0.1493527284 | H9: 0.02913576055 | I9: -0.005043960455 | J9: 0.4456261945 | K9: -0.1849415378 | L9: 4.105746839 | M9: 1.482189788 | N9: -0.4274908363
A10: 0 | E10: =IF(A10=1,E9+SIN($B10)^2/$D10^2,E9) -> 0.1273652324 | F10: =IF(A10=1,F9+COS($B10)^2/$D10^2,F9) -> 0.3871463884 | G10: =IF(A10=1,G9-COS($B10)*SIN($B10)/$D10^2,G9) -> 0.1493527284 | H10: =IF(A10=1,H9-$C10*SIN($B10)/$D10^2,H9) -> 0.02913576055 | I10: =IF(A10=1,I9+$C10*COS($B10)/$D10^2,I9) -> -0.005043960455 | J10: 0.4456261945 | K10: -0.1849415378 | L10: 4.105746839 | M10: 1.482189788 | N10: -0.4274908363
H11: Dimension of side of square>>> | L11: =L10/0.1 -> 41.05746839

Sheet Effort
A1: POA | B1: tau | C1: t_sub_I | D1: tau_or_0 | E1: det prob | I1: time_avail
A2: 0.1 | B2: 1 | C2: =IF(A2>lambda*B2,B2*LN(A2/(lambda*B2)),0) -> 1.944910649 | D2: =IF(A2>lambda*B2,B2,0) -> 1 | E2: =A2*(1-EXP(-C2/B2)) -> 0.0857 | F2: 0.0143 | G2: <<current lambda | I2: 5
A3: 0.1 | B3: 2 | C3: =IF(A3>lambda*B3,B3*LN(A3/(lambda*B3)),0) -> 2.503526936 | D3: =IF(A3>lambda*B3,B3,0) -> 2 | E3: =A3*(1-EXP(-C3/B3)) -> 0.0714 | F3: =IF($F$6>0,lambda*EXP(($F$5-$I$2)/$F$6),0.05*lambda) -> 0.01978510673 | G3: <<next lambda
A4: 0.1 | B4: 3 | C4: =IF(A4>lambda*B4,B4*LN(A4/(lambda*B4)),0) -> 2.53889508 | D4: =IF(A4>lambda*B4,B4,0) -> 3 | E4: =A4*(1-EXP(-C4/B4)) -> 0.0571 | F4: =SUM(E:E) -> 0.2997 | G4: <<current detection probability
A5: 0.1 | B5: 4 | C5: =IF(A5>lambda*B5,B5*LN(A5/(lambda*B5)),0) -> 2.23446515 | D5: =IF(A5>lambda*B5,B5,0) -> 4 | E5: =A5*(1-EXP(-C5/B5)) -> 0.0428 | F5: =SUM(C:C) -> 11.81806857 | G5: <<the sum "a"
A6: 0.1 | B6: 5 | C6: 1.677363681 | D6: 5 | E6: 0.0285 | F6: =SUM(D:D) -> 21 | G6: <<the sum "b"
A7: 0.1 | B7: 6 | C7: 0.918907077 | D7: 6 | E7: 0.0142
A8: 0.1 | B8: 7 | C8: 0 | D8: 0 | E8: 0
A9: 0.1 | B9: 8 | C9: 0 | D9: 0 | E9: 0
A10: 0.1 | B10: 9 | C10: 0 | D10: 0 | E10: 0
A11: 0.1 | B11: 10 | C11: 0 | D11: 0 | E11: 0

Sheet Effort (2)
A1: POA | B1: tau | C1: t_sub_I | G1: time_avail
A2: 0.1 | B2: 1 | C2: 1.52273068 | E2: =A2*(1-EXP(-C2/B2)) -> 0.07818845306 | G2: 5
A3: 0.1 | B3: 2 | C3: 1.659167425 | E3: 0.05637691541
A4: 0.1 | B4: 3 | C4: 1.272355342 | E4: 0.03456536283
A5: 0.1 | B5: 4 | C5: 0.545746552 | E5: 0.01275384006
A6: 0.1 | B6: 5 | C6: 0 | E6: 0
A7: 0.1 | B7: 6 | C7: 0 | E7: 0
A8: 0.1 | B8: 7 | C8: 0 | E8: 0
A9: 0.1 | B9: 8 | C9: 0 | E9: 0
A10: 0.1 | B10: 9 | C10: 0 | E10: 0
A11: 0.1 | B11: 10 | C11: 0 | E11: 0
C12: =SUM(C2:C11) -> 5 | E12: =SUM(E2:E11) -> 0.1818845714 | F12: <<detection probability

Sheet FlamDat
A1: Time (hrs) | B1: Pd | E1: delta t | F1: 0.1
A2: 0 | B2: =IF(A2<=$F$5,0,1-EXP(-($F$2*$F$4/($F$3^2)*(1/$F$5-1/A2)))) -> 0 | E2: V | F2: 100
A3: =A2+$F$1 -> 0.1 | B3: 0 | E3: U (sub spd) | F3: 10
A4: 0.2 | B4: 0 | E4: W (swp wdth) | F4: 1
A5: 0.3 | B5: 0 | E5: time late | F5: 0.5
A6: 0.4 | B6: 0
A7: 0.5 | B7: 0
A8: 0.6 | B8: 0.2834686894
A9: 0.7 | B9: 0.435281878
A10: 0.8 | B10: 0.5276334473
A11: 0.9 | B11: 0.5888877095
A12: 1 | B12: 0.6321205588
A13: 1.1 | B13: 0.6640890188
A14: 1.2 | B14: 0.6885967761
A15: 1.3 | B15: 0.7079321763
A16: 1.4 | B16: 0.7235469534
A17: 1.5 | B17: 0.7364028619
A18: 1.6 | B18: 0.7471604042
A19: 1.7 | B19: 0.756287178
A20: 1.8 | B20: 0.764122917
A21: 1.9 | B21: 0.7709200502
A22: 2 | B22: 0.7768698399
A23: 2.1 | B23: 0.7821197162
A24: 2.2 | B24: 0.7867850667
A25: 2.3 | B25: 0.7909574358
A26: 2.4 | B26: 0.7947103424
A27: 2.5 | B27: 0.798103482
A28: 2.6 | B28: 0.8011858113
A29: 2.7 | B29: 0.8039978459
A30: 2.8 | B30: 0.8065733954
A31: 2.9 | B31: 0.8089408884
A32: 3 | B32: 0.8111243972
A33: 3.1 | B33: 0.8131444377
A34: 3.2 | B34: 0.8150186001
A35: 3.3 | B35: 0.8167620499
A36: 3.4 | B36: 0.8183879305
A37: 3.5 | B37: 0.8199076879
A38: 3.6 | B38: 0.8213313351
A39: 3.7 | B39: 0.8226676688
A40: 3.8 | B40: 0.8239244483
A41: 3.9 | B41: 0.8251085431
A42: 4 | B42: 0.8262260565
A43: 4.1 | B43: 0.8272824298
A44: 4.2 | B44: 0.8282825288
A45: 4.3 | B45: 0.8292307178
A46: 4.4 | B46: 0.8301309228
A47: 4.5 | B47: 0.8309866846

Sheet LamSig
A1: time (hr) | B1: X(t) | C1: e(t) | D1: detect? | E1: p(t) | H1: lambda | I1: 0.5
A2: 0 | B2: =sigma*NORMSINV(RAND()) -> 14.89955312 | C2: =-10*(A2-1)^2+1 -> -9 | D2: =IF(C2>B2,1,0) -> 0 | E2: =NORMSDIST(C2/sigma) -> 0.06680720127 | H2: sigma | I2: 6
A3: =A2+delta -> 0.1 | B3: =IF(RAND()<lambda*delta, sigma*NORMSINV(RAND()),B2) -> 14.89955312 | C3: =-10*(A3-1)^2+1 -> -7.1 | D3: =IF(C3>B3,1,0) -> 0 | E3: =NORMSDIST(C3/sigma) -> 0.1183385336 | H3: delta | I3: 0.1
A4: =A3+delta -> 0.2 | B4: 14.89955312 | C4: -5.4 | D4: 0 | E4: 0.1840601253 | H4: CDP? | I4: =1-(1-MAX(E2:E22))*EXP(-lambda*delta*(SUM(E2:E22)-AVERAGE(E2,E22))) -> 0.6996488779
A5: 0.3 | B5: 14.89955312 | C5: -3.9 | D5: 0 | E5: 0.2578461108
A6: 0.4 | B6: 14.89955312 | C6: -2.6 | D6: 0 | E6: 0.3323863126
A7: 0.5 | B7: 14.89955312 | C7: -1.5 | D7: 0 | E7: 0.4012936743
A8: 0.6 | B8: 14.89955312 | C8: -0.6 | D8: 0 | E8: 0.4601721627
A9: 0.7 | B9: 14.89955312 | C9: 0.1 | D9: 0 | E9: 0.5066487302
A10: 0.8 | B10: 14.89955312 | C10: 0.6 | D10: 0 | E10: 0.5398278373
A11: 0.9 | B11: 14.89955312 | C11: 0.9 | D11: 0 | E11: 0.5596176924
A12: 1 | B12: 14.89955312 | C12: 1 | D12: 0 | E12: 0.5661838326
A13: 1.1 | B13: 14.89955312 | C13: 0.9 | D13: 0 | E13: 0.5596176924
A14: 1.2 | B14: 14.89955312 | C14: 0.6 | D14: 0 | E14: 0.5398278373
A15: 1.3 | B15: 14.89955312 | C15: 0.1 | D15: 0 | E15: 0.5066487302
A16: 1.4 | B16: 14.89955312 | C16: -0.6 | D16: 0 | E16: 0.4601721627
A17: 1.5 | B17: 14.89955312 | C17: -1.5 | D17: 0 | E17: 0.4012936743
A18: 1.6 | B18: 14.89955312 | C18: -2.6 | D18: 0 | E18: 0.3323863126
A19: 1.7 | B19: -2.686774371 | C19: -3.9 | D19: 0 | E19: 0.2578461108
A20: 1.8 | B20: -2.686774371 | C20: -5.4 | D20: 0 | E20: 0.1840601253
A21: 1.9 | B21: -2.686774371 | C21: -7.1 | D21: 0 | E21: 0.1183385336
A22: 2 | B22: -2.686774371 | C22: -9 | D22: 0 | E22: 0.06680720127
B23: Indicates detection>> | D23: =IF(SUM(D2:D22)>0,1,0) -> 0

Sheet LatRng
A1: LatRng | B1: detect? | C1: prob | D1: minus LN(prob) | G1: x0 | H1: b | I1: SweepWidth | J1: LatRng | K1: Probability
A2: -12.5 | B2: 0 | C2: =IF(B2=1,IF(A2=0,1,1-EXP(-(ABS($G$2/A2)^$H$2))),EXP(-(ABS($G$2/A2)^$H$2))) -> 0.8363904353 | D2: =-LN(C2) -> 0.178659747 | G2: 4.259372128 | H2: 1.599722391 | I2: =IF($H$2<=1,"Infinity",2*$G$2*GAMMALN(1-1/$H$2)) -> 7.354851472 | J2: -31 | K2: =1-EXP(-(ABS($G$2/J2)^$H$2)) -> 0.04092340562
A3: -8 | B3: 1 | C3: =IF(B3=1,IF(A3=0,1,1-EXP(-(ABS($G$2/A3)^$H$2))),EXP(-(ABS($G$2/A3)^$H$2))) -> 0.3056820635 | D3: =-LN(C3) -> 1.185209725 | J3: -29 | K3: =1-EXP(-(ABS($G$2/J3)^$H$2)) -> 0.04542465278
A4: -8 | B4: 0 | C4: 0.6943179365 | D4: 0.3648253016 | J4: -27 | K4: 0.05078381018
A5: -4 | B5: 1 | C5: 0.6690310509 | D5: 0.401924806 | J5: -25 | K5: 0.05724334066
A6: -3 | B6: 1 | C6: 0.8265610605 | D6: 0.1904814861 | J6: -23 | K6: 0.06513990549
A7: 2 | B7: 1 | C7: 0.9649613591 | D7: 0.03566722086 | J7: -21 | K7: 0.0749525233
A8: 2 | B8: 1 | C8: 0.9649613591 | D8: 0.03566722086 | J8: -19 | K8: 0.08738224494
A9: 2 | B9: 1 | C9: 0.9649613591 | D9: 0.03566722086 | J9: -17 | K9: 0.1034892464
A10: 3 | B10: 0 | C10: 0.1734389395 | D10: 1.751929675 | J10: -15 | K10: 0.1249395681
A11: 3 | B11: 1 | C11: 0.8265610605 | D11: 0.1904814861 | J11: -13 | K11: 0.1544725511
A12: 7 | B12: 0 | C12: 0.6365412146 | D12: 0.4517061112 | J12: -11 | K12: 0.1968383129
A13: 8 | B13: 1 | C13: 0.3056820635 | D13: 1.185209725 | J13: -9 | K13: 0.2607895509
A14: 9 | B14: 0 | C14: 0.7392104491 | D14: 0.3021726231 | J14: -7 | K14: 0.3634587854
A15: 10 | B15: 0 | C15: 0.7746817728 | D15: 0.2553029496 | J15: -5 | K15: 0.5387360829
D16: =SUM(D2:D15) -> 6.564905299 | J16: -3 | K16: 0.8265610605
J17: -1 | K17: 0.9999612081
J18: 1 | K18: 0.9999612081
J19: 3 | K19: 0.8265610605
J20: 5 | K20: 0.5387360829
J21: 7 | K21: 0.3634587854
J22: 9 | K22: 0.2607895509
J23: 11 | K23: 0.1968383129
J24: 13 | K24: 0.1544725511
J25: 15 | K25: 0.1249395681
J26: 17 | K26: 0.1034892464
J27: 19 | K27: 0.08738224494
J28: 21 | K28: 0.0749525233
J29: 23 | K29: 0.06513990549
J30: 25 | K30: 0.05724334066
J31: 27 | K31: 0.05078381018
J32: 29 | K32: 0.04542465278
J33: 31 | K33: 0.04092340562

Sheet Offset
A1: range | B1: density/area | C1: f(range) | D1: F(range)
A2: 0 | B2: =(1/(2*PI()))*EXP(-0.5*($A2^2+$K$23^2))*BESSELI($K$23*$A2,0) -> 0.008934124984 | C2: =B2*A2*2*PI() -> 0 | D2: 0
A3: 0.1 | B3: 0.0090180371 | C3: 0.005666199821 | D3: =D2+C3*0.05+C2*0.05 -> 0.000283309991
A4: 0.2 | B4: 0.009268943202 | C4: 0.01164769755 | D4: =D3+C4*0.05+C3*0.05 -> 0.001149004859
A5: 0.3 | B5: 0.009684299049 | C5: 0.01825447365 | D5: 0.002644113419
A6: 0.4 | B6: 0.01025969195 | C6: 0.02578541828 | D6: 0.004846108015
A7: 0.5 | B7: 0.01098860297 | C7: 0.03452171436 | D7: 0.007861464647
A8: 0.6 | B8: 0.01186211394 | C8: =B8*A8*2*PI() -> 0.044719116 | D8: 0.01182350616 | F8: 24
A9: 0.7 | B9: 0.01286859561 | C9: 0.05659903959 | D9: 0.01688941394
A10: 0.8 | B10: 0.01399341933 | C10: 0.0703385974 | D10: 0.02323629579
A11: 0.9 | B11: 0.01521873726 | C11: 0.0860599317 | D11: 0.03105622225
A12: 1 | B12: 0.01652337526 | C12: 0.1038194286 | D12: 0.04055019027
A13: 1.1 | B13: 0.01788287842 | C13: 0.1235975829 | D13: 0.05192104084
A14: 1.2 | B14: 0.01926974052 | C14: 0.1452904206 | D14: 0.06536544102
A15: 1.3 | B15: 0.02065383697 | C15: 0.1687034505 | D15: 0.08106513457
A16: 1.4 | B16: 0.02200306589 | C16: 0.1935490764 | D16: 0.09917776092
A17: 1.5 | B17: 0.02328418479 | C17: 0.2194482717 | D17: 0.1198276283
A18: 1.6 | B18: 0.02446381504 | C18: 0.2459370932 | D18: 0.1430968966
A19: 1.7 | B19: 0.02550957898 | C19: 0.2724784001 | D19: 0.1690176712
A20: 1.8 | B20: 0.0263912885 | C20: 0.2984784411 | D20: 0.1975655133
A21: 1.9 | B21: 0.02708215076 | C21: 0.3233081263 | D21: 0.2286548417
A22: 2 | B22: 0.02755988917 | C22: 0.3463277814 | D22: 0.262136637
A23: 2.1 | B23: 0.02780772224 | C23: 0.3669142508 | D23: 0.2977987387 | I23: travel time t | K23: 2.4
A24: 2.2 | B24: 0.02781513274 | C24: 0.3844887934 | D24: 0.3353688909
A25: 2.3 | B25: 0.02757837162 | C25: 0.3985440445 | D25: 0.3745205328
A26: 2.4 | B26: 0.02710065887 | C26: 0.4086683079 | D26: 0.4148811504 | Q26: r | R26: t | S26: 1-Q(r,t)
A27: 2.5 | B27: 0.02639206354 | C27: 0.4145655647 | D27: 0.456042844 | Q27: 1 | R27: 2.4 | S27: =pkoff(Q27,R27) -> 0.04044042647
A28: 2.6 | B28: 0.02546906653 | C28: 0.416069848 | D28: 0.4975746146
A29: 2.7 | B29: 0.02435383094 | C29: 0.4131530084 | D29: 0.5390357575
A30: 2.8 | B30: 0.02307322413 | C30: 0.40592536 | D30: 0.5799896759
A31: 2.9 | B31: 0.02165765144 | C31: 0.3946292083 | D31: 0.6200174043
A32: 3 | B32: 0.0201397723 | C32: 0.3796257642 | D32: 0.6587301529
A33: 3.1 | B33: 0.01855317476 | C33: 0.3613764086 | D33: 0.6957802616
A34: 3.2 | B34: =(1/(2*PI()))*EXP(-0.5*($A34^2+$K$23^2))*BESSELI($K$23*$A34,0) -> 0.01693108375 | C34: 0.3404196372 | D34: 0.7308700639
A35: 3.3 | B35: 0.01530517208 | C35: 0.3173452666 | D35: 0.7637583091
A36: 3.4 | B36: 0.01370453218 | C36: 0.2927675918 | D36: 0.794263952
A37: 3.5 | B37: 0.01215485209 | C37: 0.2672991582 | D37: 0.8222672895
A38: 3.6 | B38: 0.01067782249 | C38: 0.2415266545 | D38: 0.8477085801
A39: 3.7 | B39: 0.009290784533 | C39: 0.2159901672 | D39: 0.8705844212
A40: 3.8 | B40: 0.008006612003 | C40: 0.1911667022 | D40: 0.8909422647
A41: 3.9 | B41: 0.006833807243 | C41: 0.1674585013 | D41: 0.9088735248
A42: 4 | B42: 0.005776779372 | C42: 0.1451863011 | D42: 0.924505765
A43: 4.1 | B43: 0.004836265913 | C43: 0.1245873352 | D43: 0.9379944468
A44: 4.2 | B44: 0.004009855295 | C44: 0.1058175883 | D44: 0.9495146929
A45: 4.3 | B45: 0.003292567587 | C45: 0.08895759284 | D45: 0.959253452
A46: 4.4 | B46: 0.002677453733 | C46: 0.07402092699 | D46: 0.967402378
A47: 4.5 | B47: 0.002156178789 | C47: 0.06096451899 | D47: 0.9741516503
A48: 4.6 | B48: 0.001719561512 | C48: 0.04969988867 | D48: 0.9796848707
A49: 4.7 | B49: 0.001358050141 | C49: 0.04010453926 | D49: 0.9841750921
A50: 4.8 | B50: 0.001062121877 | C50: 0.03203284115 | D50: 0.9877819611
A51: 4.9 | B51: 0.0008226005208 | C51: 0.02532590238 | D51: 0.9906498983
A52: 5 | B52: 0.0006308928012 | C52: 0.0198200819 | D52: 0.9929071975
A53: 5.1 | B53: 0.0004791486523 | C53: 0.01535395684 | D53: 0.9946658994
A54: 5.2 | B54: 0.0003603540848 | C54: 0.01177369175 | D54: 0.9960222819
A55: 5.3 | B55: 0.0002683673592 | C55: 0.008936869795 | D55: 0.9970578099
A56: 5.4 | B56: 0.0001979100199 | C56: 0.006714928776 | D56: 0.9978403999
A57: 5.5 | B57: 0.0001445242361 | C57: 0.004994399062 | D57: 0.9984258663
A58: 5.6 | B58: 0.0001045070346 | C58: 0.003677167561 | D58: 0.9988594446
A59: 5.7 | B59: 7.483066378e-05 | C59: 0.002679997085 | D59: 0.9991773028
A60: 5.8 | B60: 5.305671214e-05 | C60: 0.001933517894 | D60: 0.9994079786
A61: 5.9 | B61: 3.724991628e-05 | C61: 0.001380883947 | D61: 0.9995736987
A62: 6 | B62: 2.589597056e-05 | C62: 0.0009762550903 | D62: 0.9996915556
A63: 6.1 | B63: 1.782620181e-05 | C63: 0.0006832325087 | D63: 0.99977453
A64: 6.2 | B64: 1.215075038e-05 | C64: 0.0004733415809 | D64: 0.9998323587
A65: 6.3 | B65: 8.200929052e-06 | C65: 0.0003246261286 | D65: 0.9998722571
A66: 6.4 | B66: =(1/(2*PI()))*EXP(-0.5*($A66^2+$K$23^2))*BESSELI($K$23*$A66,0) -> 5.480709746e-06 | C66: 0.0002203924157 | D66: 0.999899508
A67: 6.5 | B67: 3.626791169e-06 | C67: 0.0001481207064 | D67: 0.9999179337
A68: 6.6 | B68: 2.376394755e-06 | C68: 9.854676882e-05 | D68: =D67+C68*0.05+C67*0.05 -> 0.999930267
A69: 6.7 | B69: 1.541783091e-06 | C69: 6.490496941e-05 | D69: 0.9999384396
A70: 6.8 | B70: 9.90455738e-07 | C70: 4.231787519e-05 | D70: 0.9999438008
A71: 6.9 | B71: 6.300173054e-07 | C71: 2.731375679e-05 | D71: 0.9999472823
A72: 7 | B72: 3.968022041e-07 | C72: =B72*A72*2*PI() -> 1.745227245e-05 | D72: 0.9999495206
A73: 7.1 | B73: 2.47456293e-07 | C73: 1.103917759e-05 | D73: 0.9999509452
A74: 7.2 | B74: 1.52800388e-07 | C74: 6.912526698e-06 | D74: 0.9999518428
A75: 7.3 | B75: 9.342232917e-08 | C75: 4.285025584e-06 | D75: 0.9999524027
A76: 7.4 | B76: 5.655565135e-08 | C76: 2.629587318e-06 | D76: 0.9999527484
A77: 7.5 | B77: 3.389996605e-08 | C77: 1.597498264e-06 | D77: 0.9999529598
A78: 7.6 | B78: 2.011960057e-08 | C78: 9.607553582e-07 | D78: 0.9999530877
A79: 7.7 | B79: 1.182320517e-08 | C79: 5.720128952e-07 | D79: 0.9999531643
A80: 7.8 | B80: 6.879325551e-09 | C80: 3.371478024e-07 | D80: 0.9999532098
A81: 7.9 | B81: 3.963239226e-09 | C81: 1.967239551e-07 | D81: 0.9999532365
A82: 8 | B82: 2.260724102e-09 | C82: 1.136363877e-07 | D82: 0.999953252
A83: 8.1 | B83: 1.276840911e-09 | C83: 6.498328724e-08 | D83: 0.9999532609
A84: 8.2 | B84: 7.140310442e-10 | C84: 3.67883928e-08 | D84: 0.999953266
A85: 8.3 | B85: 3.953553695e-10 | C85: 2.06179557e-08 | D85: 0.9999532689
A86: 8.4 | B86: 2.167442701e-10 | C86: 1.143949307e-08 | D86: 0.9999532705
A87: 8.5 | B87: 1.176511747e-10 | C87: 6.283405125e-09 | D87: 0.9999532714
A88: 8.6 | B88: 6.323140326e-11 | C88: 3.416733766e-09 | D88: 0.9999532719
A89: 8.7 | B89: 3.364779104e-11 | C89: 1.839313165e-09 | D89: 0.9999532721
A90: 8.8 | B90: 1.772828745e-11 | C90: 9.802330137e-10 | D90: 0.9999532723
A91: 8.9 | B91: 9.248319507e-12 | C91: 5.171692567e-10 | D91: 0.9999532723
A92: 9 | B92: 4.776876666e-12 | C92: 2.701260115e-10 | D92: 0.9999532724
A93: 9.1 | B93: 2.442922926e-12 | C93: 1.396789706e-10 | D93: 0.9999532724
A94: 9.2 | B94: 1.236970741e-12 | C94: 7.150347075e-11 | D94: 0.9999532724
A95: 9.3 | B95: 6.20143828e-13 | C95: 3.623725087e-11 | D95: 0.9999532724
A96: 9.4 | B96: 3.078280505e-13 | C96: 1.818092243e-11 | D96: 0.9999532724
A97: 9.5 | B97: 1.512885897e-13 | C97: 9.030455319e-12 | D97: 0.9999532724
A98: 9.6 | B98: 7.361830946e-14 | C98: 4.440551811e-12 | D98: 0.9999532724
A99: 9.7 | B99: 3.546881445e-14 | C99: 2.161714198e-12 | D99: 0.9999532724
A100: 9.8 | B100: 1.691952516e-14 | C100: 1.041823416e-12 | D100: 0.9999532724
A101: 9.9 | B101: 7.991160425e-15 | C101: 4.970784235e-13 | D101: 0.9999532724
A102: 10 | B102: 3.736897956e-15 | C102: 2.347962233e-13 | D102: 0.9999532724

Sheet ONAP
A1: Cell | B1: p | C1: delta | D1: tau | E1: alpha | F1: temp | G1: search | H1: classify | I1: miss prob | J1: lambda | K1: total time | L1: det prob
A2: 1 | B2: 0.3 | C2: 1 | D2: 2 | E2: 1 | F2: =E2*(B2/$J$2-C2*D2) -> 4 | G2: =IF(F2>1,LN(F2)/E2,0) -> 1.386294361 | H2: =C2*D2*(1-EXP(-E2*G2)) -> 1.5 | I2: =B2*EXP(-E2*G2) -> 0.075 | J2: 0.05 | K2: =G12+H12 -> 4.926015132 | L2: =1-I12 -> 0.35
A3: 2 | B3: 0.1 | C3: 1 | D3: 1 | E3: 1 | F3: =E3*(B3/$J$2-C3*D3) -> 1 | G3: =IF(F3>1,LN(F3)/E3,0) -> 0 | H3: =C3*D3*(1-EXP(-E3*G3)) -> 0 | I3: =B3*EXP(-E3*G3) -> 0.1
A4: 3 | B4: 0.1 | C4: 1 | D4: 1 | E4: 1 | F4: 1 | G4: 0 | H4: 0 | I4: 0.1
A5: 4 | B5: 0.1 | C5: 1 | D5: 1 | E5: 1 | F5: 1 | G5: 0 | H5: 0 | I5: 0.1
A6: 5 | B6: 0.1 | C6: 1 | D6: 1 | E6: 1 | F6: 1 | G6: 0 | H6: 0 | I6: 0.1
A7: 6 | B7: 0.1 | C7: 1 | D7: 1 | E7: 2 | F7: 2 | G7: 0.3465735903 | H7: 0.5 | I7: 0.05
A8: 7 | B8: 0.1 | C8: 1 | D8: 1 | E8: 2 | F8: 2 | G8: 0.3465735903 | H8: 0.5 | I8: 0.05
A9: 8 | B9: 0.05 | C9: 1 | D9: 1 | E9: 2 | F9: 0 | G9: 0 | H9: 0 | I9: 0.05
A10: 9 | B10: 0.05 | C10: 0 | D10: 1 | E10: 2 | F10: 2 | G10: 0.3465735903 | H10: 0 | I10: 0.025
A11: 10 | B11: 0 | C11: 0 | D11: 0 | E11: 0 | F11: 0 | G11: 0 | H11: 0 | I11: 0
A12: totals>>> | B12: =SUM(B2:B11) -> 1 | G12: =SUM(G2:G11) -> 2.426015132 | H12: =SUM(H2:H11) -> 2.5 | I12: =SUM(I2:I11) -> 0.65

Sheet ProdLim
A1: Max | B1: Detect? | D1: Rank | E1: 1 | F1: PL
A2: 14 | B2: 0 | D2: =COUNT(A:A) -> 6 | E2: =IF(B2=0,E1,E1*(1-1/D2)) -> 1 | F2: =1-E2 -> 0
A3: 10 | B3: 1 | D3: =D2-1 -> 5 | E3: 0.8 | F3: 0.2
A4: 9 | B4: 1 | D4: =D3-1 -> 4 | E4: 0.6 | F4: 0.4
A5: 8 | B5: 1 | D5: =D4-1 -> 3 | E5: 0.4 | F5: 0.6
A6: 4 | B6: 1 | D6: =D5-1 -> 2 | E6: 0.2 | F6: 0.8
A7: 4 | B7: 0 | D7: =D6-1 -> 1 | E7: 0.2 | F7: 0.8

Sheet RelMin
A1: PathX | B1: PathY | C1: SurvProb | D1: ToRight? | E1: Interior? | F1: TargX | G1: TargY | H1: SweepWidth
A2: 4 | B2: -10 | C2: 1 | D2: FALSE | E2: FALSE | F2: 1 | G2: 12 | H2: 2
A3: 4 | B3: 10 | C3: 1 | D3: TRUE | E3: FALSE
A4: 2 | B4: 10 | C4: 0.9383221202 | D4: TRUE | E4: FALSE
A5: 2 | B5: -10 | C5: 0.9993425512 | D5: TRUE | E5: TRUE | G5: RelMin | H5: GlobMin | I5: True Detection probability
A6: 0 | B6: -10 | C6: 1 | D6: TRUE | E6: FALSE | G6: =1-PRODUCT(C2:C7) -> 0.1201304486 | H6: =1-MIN(C2:C7) -> 0.06167787983 | I6: 0.07612124275
A7: 0 | B7: 10 | C7: 0.9383221202 | D7: TRUE | E7: FALSE
A8: -2 | B8: 10 | C8: 1 | D8: FALSE | E8: FALSE
A9: -2 | B9: -3 | C9: 1 | D9: N/A | E9: N/A

Sheet RoundCake
A1: i | B1: zi | C1: ui | D1: P(Ri) | E1: diff | F1: Pi | G1: Qi | I1: z | J1: 16
A2: 1 | B2: 0.9685622852 | C2: 0.9806157573 | D2: =1-EXP(-C2) -> 0.6249199306 | E2: =C2 -> 0.9806157573 | F2: =(1-EXP(-B2/C2)) -> 0.627570776 | G2: =D2*F2 -> 0.3921814858 | I2: SOLR | J2: =1-EXP(-SQRT(2*J1))*(1+SQRT(2*J1)) -> 0.9767443511
A3: 2 | B3: 1.733759689 | C3: 1.893506524 | D3: =1-EXP(-C3) -> 0.8494570003 | E3: =C3-C2 -> 0.9128907662 | F3: 0.5997373768 | G3: =D3*F3+G2*(1-F3) -> 0.6664267033 | I3: SULR | J3: =(1-EXP(-SQRT(J1)))^2 -> 0.9637041849
A4: 3 | B4: 3.434600329 | C4: 2.979412837 | D4: 0.9491773337 | E4: =C4-C3 -> 1.085906313 | F4: 0.6842414953 | G4: =D4*F4+G3*(1-F4) -> 0.8598964174
A5: 4 | B5: 3.651948559 | C5: 3.981464991 | D5: 0.9813417149 | E5: 1.002052154 | F5: 0.6003784843 | G5: 0.9328095611
A6: 5 | B6: 3.700363814 | C6: 4.81085371 | D6: 0.9918590932 | E6: 0.8293887195 | F6: 0.5366024198 | G6: 0.9644956829
A7: 6 | B7: 2.510765323 | C7: 5.407965828 | D7: 0.9955192544 | E7: 0.5971121176 | F7: 0.3714072382 | G7: 0.9760180619
B8: =SUM(B2:B7) -> 16

Sheet Search
A1: POD | B1: POA1 | C1: POA2 | D1: POA3 | E1: POA4
A2: 0.5 | B2: 0.2 | C2: 0.1111111111 | D2: 0.125 | E2: 0.1428571429
A3: 0.5 | B3: 0.2 | C3: 0.2222222222 | D3: 0.125 | E3: 0.1428571429
A4: 0.5 | B4: 0.2 | C4: 0.2222222222 | D4: 0.25 | E4: 0.1428571429
A5: 0.5 | B5: 0.2 | C5: 0.2222222222 | D5: 0.25 | E5: 0.2857142857
A6: 0.5 | B6: 0.2 | C6: 0.2222222222 | D6: 0.25 | E6: 0.2857142857
A7: P(NoDet) | B7: 1 | C7: 0.9 | D7: 0.8 | E7: 0.7

Sheet SprntDrft
B1: Y (height) | C1: s (angle) | D1: r (angle) | E1: X (base) | F1: area/look | G1: cov_rate | H1: R (det) | I1: S (cnt_det) | J1: TAU (delay) | K1: V (speed) | L1: (deltaY)/R
A2: 0 | B2: =A2*$H$2 -> 0 | C2: =ASIN(A2) -> 0 | D2: =ASIN(B2/$I$2) -> 0 | E2: =$H$2*COS(C2)+$I$2*COS(D2) -> 12 | F2: =(PI()-C2)*$H$2*$H$2+E2*B2-D2*$I$2*$I$2 -> 78.53981634 | G2: =F2/($J$2+E2/$K$2) -> 112.1997376 | H2: 5 | I2: 7 | J2: 0.1 | K2: 20 | L2: 0.05
A3: =A2+$L$2 -> 0.05 | B3: =A3*$H$2 -> 0.25 | C3: =ASIN(A3) -> 0.05002085681 | D3: =ASIN(B3/$I$2) -> 0.0357218824 | E3: =$H$2*COS(C3)+$I$2*COS(D3) -> 11.98928038 | F3: =(PI()-C3)*$H$2*$H$2+E3*B3-D3*$I$2*$I$2 -> 78.53624278 | G3: =F3/($J$2+E3/$K$2) -> 112.2806044
A4: 0.1 | B4: 0.5 | C4: 0.1001674212 | D4: =ASIN(B4/$I$2) -> 0.07148944989 | E4: 11.95705721 | F4: 78.51117637 | G4: 112.5039114
A5: 0.15 | B5: 0.75 | C5: 0.1505682728 | D5: 0.1073489161 | E5: 11.90313544 | F5: 78.44286421 | G5: 112.8419766
A6: 0.2 | B6: 1 | C6: 0.2013579208 | D6: 0.1433475689 | E6: 11.82718272 | F6: 78.30902016 | G6: 113.2682221
A7: 0.25 | B7: 1.25 | C7: 0.2526802551 | D7: 0.1795343514 | E7: 11.72871784 | F7: 78.08652404 | G7: 113.7564701
A8: 0.3 | B8: 1.5 | C8: 0.304692654 | D8: 0.2159604987 | E8: 11.60709317 | F8: 77.75107531 | G8: 114.280213
A9: 0.35 | B9: 1.75 | C9: 0.3575711036 | D9: 0.2526802551 | E9: 11.46146935 | F9: 77.27677762 | G9: 114.8118019
A10: 0.4 | B10: 2 | C10: 0.4115168461 | D10: 0.2897517014 | E10: 11.29077963 | F10: 76.63562107 | G10: 115.3214833
A11: 0.45 | B11: 2.25 | C11: 0.466765339 | D11: 0.3272377304 | E11: 11.09367957 | F11: 75.7968131 | G11: 115.7761846
A12: 0.5 | B12: 2.5 | C12: 0.5235987756 | D12: 0.3652072213 | E12: 10.86847543 | F12: 74.72588169 | G12: 116.1378938
A13: 0.55 | B13: 2.75 | C13: =ASIN(A13) -> 0.5823642379 | D13: =ASIN(B13/$I$2) -> 0.403736481 | E13: =$H$2*COS(C13)+$I$2*COS(D13) -> 10.61301987 | F13: =(PI()-C13)*$H$2*$H$2+E13*B13-D13*$I$2*$I$2 -> 73.38342746 | G13: =F13/($J$2+E13/$K$2) -> 116.361392
A14: 0.6 | B14: 3 | C14: 0.6435011088 | D14: 0.4429110441 | E14: 10.32455532 | F14: 71.72331342 | G14: 116.3909148
A15: 0.65 | B15: 3.25 | C15: 0.7075844367 | D15: 0.4828279627 | E15: 9.999469422 | F15: 69.68991087 | G15: 116.1549872
A16: 0.7 | B16: 3.5 | C16: 0.7753974966 | D16: 0.5235987756 | E16: 9.632892041 | F16: 67.21366106 | G16: 115.5579555
A17: 0.75 | B17: 3.75 | C17: 0.848062079 | D17: 0.5653534302 | E17: 9.217984348 | F17: 64.20338759 | G17: 114.4651046
A18: 0.8 | B18: 4 | C18: 0.927295218 | D18: 0.6082455789 | E18: 8.744562647 | F18: 60.53165311 | G18: 112.6740196
A19: 0.85 | B19: 4.25 | C19: 1.015985294 | D19: 0.6524598973 | E19: 8.196062304 | F19: 56.00291382 | G19: 109.8520432
A20: 0.9 | B20: 4.5 | C20: 1.119769515 | D20: 0.6982224734 | E20: 7.541352119 | F20: 50.26876181 | G20: 105.3703106
A21: 0.95 | B21: 4.75 | C21: 1.253235898 | D21: 0.7458160166 | E21: 6.70299045 | F21: 42.50313873 | G21: 97.67479115 | K21: Every sprint of length X covers the bright yellow area.
A22: =A21+$L$2-0.00000001 -> 0.99999999 | B22: 4.99999995 | C22: =ASIN(A22) -> 1.570654905 | D22: =ASIN(B22/$I$2) -> 0.7956029433 | E22: =$H$2*COS(C22)+$I$2*COS(D22) -> 4.899686643 | F22: =(PI()-C22)*$H$2*$H$2+E22*B22-D22*$I$2*$I$2 -> 24.78733245 | G22: =F22/($J$2+E22/$K$2) -> 71.85060347

Sheet Swid
A1: H | B1: Swid(H) | C1: Slope | D1: Pi/H | E1: Quadratic | H1: x | I1: LRC0 | J1: LRC1 | K1: LRC2
A2: 0 | B2: =swid(A2) -> 2.506628275 | C2: 0 | E2: =SQRT(2*PI())*(1-A2^2/8) -> 2.506628275 | H2: 0 | I2: 1 | J2: =1-EXP(-2*$Q$41/($H2^2+$Q$39^2)) -> 0.9229935527 | K2: =1-EXP(-2*$R$41/($H2^2+$R$39^2)) -> 0.6288714741
A3: =A2+0.25 -> 0.25 | B3: =swid(A3) -> 2.486806106 | C3: -0.1605737162 | E3: =SQRT(2*PI())*(1-A3^2/8) -> 2.487045241 | H3: =H2+0.05 -> 0.05 | I3: =1-EXP(-2*$N$41/(H3^2)) -> 1 | J3: 0.9224996207 | K3: 0.6286416309
A4: =A3+0.25 -> 0.5 | B4: =swid(A4) -> 2.423756079 | C4: -0.3550135632 | E4: 2.428296141 | H4: =H3+0.05 -> 0.1 | I4: 1 | J4: 0.9210137361 | K4: 0.62795297
A5: 0.75 | B5: =swid(A5) -> 2.300920326 | C5: -0.6335124192 | E5: 2.330380974 | H5: 0.15 | I5: 1 | J5: 0.9185241431 | K5: 0.6268080924
A6: 1 | B6: =swid(A6) -> 2.116396796 | C6: -0.8100571281 | D6: =PI()/A6 -> 3.141592654 | E6: 2.19329974 | H6: 0.2 | I6: 1 | J6: 0.9150129081 | K6: 0.6252113142
A7: 1.25 | B7: =swid(A7) -> 1.910607835 | C7: -0.8146301972 | D7: 2.513274123 | E7: 2.01705244 | H7: 0.25 | I7: 1 | J7: 0.9104582673 | K7: 0.6231686388
A8: 1.5 | B8: =swid(A8) -> 1.715871758 | C8: -0.7361169495 | D8: 2.094395102 | E8: 1.801639072 | H8: 0.3 | I8: 0.9999999997 | J8: 0.9048376369 | K8: 0.6206877172
A9: 1.75 | B9: =swid(A9) -> 1.544121049 | C9: -0.6374696411 | D9: 1.795195802 | E9: 1.547059638 | H9: 0.35 | I9: 0.9999999115 | J9: 0.8981310221 | K9: 0.6177777966
A10: 2 | B10: =swid(A10) -> 1.39664181 | C10: -0.544205948 | D10: 1.570796327 | E10: 1.253314137 | H10: 0.4 | I10: 0.999996019 | J10: 0.8903245163 | K10: 0.6144496579
A11: 2.25 | B11: =swid(A11) -> 1.270932997 | C11: -0.4637594473 | D11: 1.396263402 | E11: 0.9204025696 | H11: 0.45 | I11: 0.9999458839 | J11: 0.8814135686 | K11: 0.6107155408
A12: 2.5 | B12: =swid(A12) -> 1.163641051 | C12: -0.3967034093 | D12: 1.256637061 | H12: 0.5 | I12: 0.9996500594 | J12: 0.8714057144 | K12: 0.6065890584
A13: 2.75 | B13: =swid(A13) -> 1.071597781 | C13: -0.3414393288 | D13: 1.142397329 | H13: 0.55 | I13: 0.9986074944 | J13: 0.8603225291 | K13: 0.6020850992
A14: 3 | B14: =swid(A14) -> 0.9921079981 | C14: -0.2959426515 | D14: 1.047197551 | H14: 0.6 | I14: 0.9960189644 | J14: 0.8482006481 | K14: 0.5972197207
A15: 3.25 | B15: =swid(A15) -> 0.9229689825 | C15: -0.2583464252 | D15: 0.9666438934 | H15: 0.65 | I15: 0.9909837442 | J15: 0.835091804 | K15: 0.5920100317
A16: 3.5 | B16: =swid(A16) -> 0.8624071813 | C16: -0.2270918506 | D16: 0.897597901 | H16: 0.7 | I16: 0.9827522759 | J16: 0.8210619322 | K16: 0.5864740674
A17: 3.75 | B17: =swid(A17) -> 0.8089995648 | C17: -0.2009279541 | D17: 0.837758041 | H17: 0.75 | I17: 0.9708929979 | J17: 0.8061894848 | K17: 0.5806306576
A18: 4 | B18: =swid(A18) -> 0.7616019168 | C18: -0.1788665164 | D18: 0.7853981634 | H18: 0.8 | I18: 0.9553318689 | J18: 0.7905631476 | K18: 0.574499289
A19: 4.25 | B19: =swid(A19) -> 0.7192896473 | C19: -0.1601304648 | D19: 0.7391982714 | H19: 0.85 | I19: 0.9362984082 | J19: 0.774279188 | K19: 0.5680999652
A20: 4.5 | B20: =swid(A20) -> 0.6813108986 | C20: -0.1441080892 | D20: 0.6981317008 | H20: 0.9 | I20: 0.9142307562 | J20: 0.7574386532 | K20: 0.5614530648
A21: 4.75 | B21: =swid(A21) -> 0.6470500293 | C21: -0.130315873 | D21: 0.6613879271 | H21: 0.95 | I21: 0.8896791226 | J21: 0.7401446187 | K21: 0.5545791997
A22: 5 | B22: =swid(A22) -> 0.6159993575 | C22: -0.1183694509 | D22: 0.6283185307 | H22: 1 | I22: 0.8632275645 | J22: 0.7224996445 | K22: 0.5474990771
A23: 5.25 | B23: =swid(A23) -> 0.5877372802 | C23: -0.1079612945 | D23: 0.5983986007 | H23: 1.05 | I23: 0.8354396345 | J23: 0.7046035488 | K23: 0.5402333651
A24: 5.5 | B24: =swid(A24) -> 0.5619112941 | C24: -0.09884367471 | D24: 0.5711986643 | H24: 1.1 | I24: 0.8068257476 | J24: 0.686551567 | K24: 0.5328025644
A25: 5.75 | B25: =swid(A25) -> 0.5382247436 | C25: -0.09081566223 | D25: 0.5463639398 | H25: 1.15 | I25: 0.7778272461 | J25: 0.6684329199 | K25: 0.5252268886
A26: 6 | B26: =swid(A26) -> 0.5164264163 | C26: -0.08371318206 | D26: 0.5235987756 | H26: 1.2 | I26: 0.748811927 | J26: 0.6503297835 | K26: 0.517526153
A27: 6.25 | B27: =swid(A27) -> 0.4963023279 | C27: -0.07740137202 | D27: 0.5026548246 | H27: 1.25 | I27: 0.7200766728 | J27: 0.6323166318 | K27: 0.5097196734
A28: 6.5 | B28: =swid(A28) -> 0.4776691887 | C28: -0.07176867893 | D28: 0.4833219467 | H28: 1.3 | I28: 0.6918539844 | J28: 0.6144599057 | K28: 0.5018261758
A29: 6.75 | B29: =swid(A29) -> 0.460369173 | C29: -0.06672226987 | D29: 0.4654211339 | H29: 1.35 | I29: 0.6643202469 | J29: 0.5968179558 | K29: 0.4938637181
A30: 7 | B30: =swid(A30) -> 0.444265706 | C30: -0.06218444329 | D30: 0.4487989505 | H30: 1.4 | I30: 0.6376043723 | J30: 0.5794412058 | K30: 0.4858496228
A31: 7.25 | B31: =swid(A31) -> 0.429240047 | C31: -0.05808980405 | D31: 0.4333231246 | H31: 1.45 | I31: 0.6117960349 | J31: 0.5623724833 | K31: 0.4778004212
A32: 7.5 | B32: =swid(A32) -> 0.415188505 | C32: -0.05438302585 | D32: 0.4188790205 | H32: 1.5 | I32: 0.586953098 | J32: 0.5456474707 | K32: 0.4697318098
A33: 7.75 | B33: =swid(A33) -> 0.4020201513 | C33: -0.05101706777 | D33: 0.405366794 | H33: 1.55 | I33: 0.5631080738 | J33: 0.5292952369 | K33: 0.4616586169
A34: 8 | B34: =swid(A34) -> 0.3896549342 | C34: -0.04795174432 | D34: 0.3926990817 | H34: 1.6 | I34: 0.5402735984 | J34: 0.5133388142 | K34: 0.4535947804
A35: 8.25 | B35: =swid(A35) -> 0.3780221129 | C35: -0.04515257209 | D35: 0.3807991095 | H35: 1.65 | I35: =1-EXP(-2*$N$41/(H35^2)) -> 0.5184469845 | J35: 0.4977957937 | K35: 0.445553334
A36: 8.5 | B36: =swid(A36) -> 0.3670589564 | C36: -0.04258983431 | D36: 0.3695991357 | H36: 1.7 | I36: 0.4976139506 | J36: 0.4826789186 | K36: 0.4375464042
A37: 8.75 | B37: =swid(A37) -> 0.3567096454 | C37: -0.04023781794 | D37: 0.3590391604 | H37: 1.75 | I37: 0.4777516368 | J37: 0.4679966586 | K37: 0.4295852138
A38: 9 | B38: =swid(A38) -> 0.3469243564 | C38: -0.0380741884 | D38: 0.3490658504 | H38: 1.8 | I38: 0.4588310193 | J38: 0.4537537556 | K38: 0.4216800932
A39: 9.25 | B39: =swid(A39) -> 0.3376584813 | C39: -0.0360794743 | D39: 0.3396316382 | H39: 1.85 | I39: 0.4408188233 | J39: 0.4399517327 | K39: 0.413840498 | M39: h | N39: 0 | O39: 0.1 | P39: 0.5 | Q39: 1 | R39: 2
A40: 9.5 | B40: =swid(A40) -> 0.3288719679 | C40: -0.03423664097 | D40: 0.3306939635 | H40: 1.9 | I40: 0.4236790238 | J40: 0.4265893621 | K40: 0.406075032 | M40: W | N40: 5 | O40: 5 | P40: 5 | Q40: 5 | R40: 5
A41: 9.75 | B41: =swid(A41) -> 0.320528755 | C41: -0.03253073577 | D41: 0.3222146311 | H41: 1.95 | I41: 0.4073740128 | J41: 0.413663091 | K41: 0.3983914743 | M41: m | N41: =koopman(N40,N39) -> 0.9947183943 | O41: =koopman(O40,O39) -> 0.9972215512 | P41: =koopman(P40,P39) -> 1.059558051 | Q41: =koopman(Q40,Q39) -> 1.281933065 | R41: =koopman(R40,R39) -> 1.982413691
A42: 10 | B42: =swid(A42) -> 0.3125962909 | C42: -0.03094859182 | D42: 0.3141592654 | H42: 2 | I42: 0.3918654956 | J42: 0.4011674241 | K42: 0.3907968107
A43: 10.25 | B43: =swid(A43) -> 0.3050451188 | C43: -0.02947857947 | D43: 0.3064968443 | H43: 2.05 | I43: 0.3771151719 | J43: 0.3890952652 | K43: 0.3832972674
A44: 10.5 | B44: =swid(A44) -> 0.2978485184 | C44: -0.02811039699 | D44: 0.2991993003 | H44: 2.1 | I44: 0.3630852439 | J44: 0.3774382186 | K44: 0.3758983475
A45: 10.75 | B45: =swid(A45) -> 0.2909821996 | C45: -0.02683489358 | D45: 0.2922411771 | H45: 2.15 | I45: 0.3497387887 | J45: 0.3661868539 | K45: 0.3686048684
A46: 11 | B46: =swid(A46) -> 0.2844240301 | C46: -0.02564391918 | D46: 0.2855993321 | H46: 2.2 | I46: 0.3370400241 | J46: 0.355330936 | K46: 0.3614210007 | M46: W | N46: p0 | O46: 1/H^2 | P46: H | Q46: Swid/H | R46: h | S46: m
A47: 11.25 | B47: =swid(A47) -> 0.2781538045 | C47: -0.02453019652 | D47: 0.2792526803 | H47: 2.25 | I47: 0.32495449 | J47: 0.344859625 | K47: 0.3543503074 | M47: 5 | N47: 0.9 | O47: =LN(1/(1-N47))/2 -> 1.151292546 | P47: =1/SQRT(O47) -> 0.9319812036 | Q47: =swid(P47)/P47 -> 2.329029448 | R47: =0.5*M47/Q47 -> 1.073408497 | S47: =(R47/P47)^2 -> 1.326525952
A48: 11.5 | B48: =swid(A48) -> 0.2721530393 | C48: -0.02348721182 | D48: 0.2731819699 | H48: 2.3 | I48: 0.3134491652 | J48: 0.3347616473 | K48: 0.347395783
A49: 11.75 | B49: =swid(A49) -> 0.2664047924 | C49: -0.022509121 | D49: 0.2673695875 | H49: 2.35 | I49: 0.3024925346 | J49: 0.3250254419 | K49: 0.340559892
A50: 12 | B50: =swid(A50) -> 0.2608935101 | C50: -0.02159066907 | D50: 0.2617993878 | H50: 2.4 | I50: 0.2920546173 | J50: 0.3156392838 | K50: 0.3338446076
A51: 12.25 | B51: =swid(A51) -> 0.2556048838 | C51: -0.02072712052 | D51: 0.2564565432 | H51: 2.45 | I51: 0.2821069671 | J51: 0.3065913889 | K51: 0.3272514484
A52: 12.5 | B52: =swid(A52) -> 0.2505257323 | C52: -0.01991419914 | D52: 0.2513274123 | H52: 2.5 | I52: 0.2726226507 | J52: 0.2978700004 | K52: 0.3207815143
H53: 2.55 | I53: 0.2635762108 | J53: 0.289463461 | K53: 0.3144355215
H54: 2.6 | I54: 0.254943618 | J54: 0.2813602714 | K54: 0.308213835
H55: 2.65 | I55: 0.2467022157 | J55: 0.2735491381 | K55: 0.3021165007
H56: 2.7 | I56: 0.2388306596 | J56: 0.2660190106 | K56: 0.2961432749
H57: 2.75 | I57: 0.2313088546 | J57: 0.2587591116 | K57: 0.2902936527
H58: 2.8 | I58: 0.2241178915 | J58: 0.2517589587 | K58: 0.2845668944
H59: 2.85 | I59: 0.2172399828 | J59: 0.2450083808 | K59: 0.2789620505
H60: 2.9 | I60: 0.2106583998 | J60: 0.2384975298 | K60: 0.2734779848
H61: 2.95 | I61: 0.2043574121 | J61: 0.232216887 | K61: 0.268113396
H62: 3 | I62: 0.1983222277 | J62: 0.2261572667 | K62: 0.2628668378
H63: 3.05 | I63: 0.1925389375 | J63: 0.2203098167 | K63: 0.2577367373
H64: 3.1 | I64: 0.1869944604 | J64: 0.2146660165 | K64: 0.2527214123
H65: 3.15 | I65: 0.1816764926 | J65: 0.2092176732 | K65: 0.2478190867
H66: 3.2 | I66: 0.1765734587 | J66: =1-EXP(-2*$Q$41/($H66^2+$Q$39^2)) -> 0.2039569159 | K66: =1-EXP(-2*$R$41/($H66^2+$R$39^2)) -> 0.2430279053
H67: 3.25 | I67: =1-EXP(-2*$N$41/(H67^2)) -> 0.1716744662 | J67: 0.198876189 | K67: 0.2383459466
H68: =H67+0.05 -> 3.3 | I68: 0.1669692621 | J68: 0.1939682448 | K68: 0.2337712351
H69: 3.35 | I69: 0.1624481926 | J69: 0.1892261344 | K69: 0.2293017523
H70: 3.4 | I70: 0.1581021648 | J70: 0.184643199 | K70: 0.2249354461
H71: 3.45 | I71: 0.1539226114 | J71: 0.1802130606 | K71: 0.2206702404
H72: 3.5 | I72: 0.1499014569 | J72: 0.1759296121 | K72: 0.216504043
H73: 3.55 | I73: 0.1460310867 | J73: 0.1717870075 | K73: 0.2124347525
H74: 3.6 | I74: 0.1423043177 | J74: 0.1677796523 | K74: 0.2084602655
H75: 3.65 | I75: 0.1387143714 | J75: 0.1639021933 | K75: 0.2045784817
H76: 3.7 | I76: 0.135254848 | J76: 0.1601495097 | K76: 0.2007873098
H77: 3.75 | I77: 0.131919703 | J77: 0.1565167026 | K77: 0.1970846712
H78: 3.8 | I78: 0.1287032247 | J78: 0.1529990865 | K78: 0.1934685052
H79: 3.85 | I79: 0.1256000139 | J79: 0.1495921798 | K79: 0.1899367713
H80: 3.9 | I80: 0.1226049641 | J80: 0.1462916962 | K80: 0.1864874533
H81: 3.95 | I81: 0.1197132439 | J81: 0.143093536 | K81: 0.1831185614
H82: 4 | I82: 0.11692028 | J82: 0.1399937778 | K82: 0.1798281349
H83: 4.05 | I83: 0.1142217414 | J83: 0.1369886709 | K83: 0.1766142437
H84: 4.1 | I84: 0.1116135249 | J84: 0.134074627 | K84: 0.1734749903
H85: 4.15 | I85: 0.1090917414 | J85: 0.1312482135 | K85: 0.1704085113
H86: 4.2 | I86: 0.106652703 | J86: 0.1285061459 | K86: 0.1674129779
H87: 4.25 | I87: 0.1042929111 | J87: 0.1258452813 | K87: 0.1644865975
H88: 4.3 | I88: 0.1020090452 | J88: 0.1232626118 | K88: 0.1616276142
H89: 4.35 | I89: 0.09979795264 | J89: 0.1207552582 | K89: 0.1588343088
H90: 4.4 | I90: 0.09765663868 | J90: 0.1183204643 | K90: 0.1561049999
H91: 4.45 | I91: 0.09558225737 | J91: 0.115955591 | K91: 0.1534380435
H92: 4.5 | I92: 0.09357210308 | J92: 0.1136581111 | K92: 0.1508318335
H93: 4.55 | I93: 0.09162360249 | J93: 0.1114256039 | K93: 0.1482848014
H94: 4.6 | I94: 0.08973430706 | J94: 0.1092557502 | K94: 0.145795416
H95: 4.65 | I95: 0.0879018861 | J95: 0.1071463282 | K95: 0.1433621835
H96: 4.7 | I96: 0.08612412011 | J96: 0.1050952081 | K96: 0.1409836472
H97: 4.75 | I97: 0.08439889469 | J97: 0.1031003487 | K97: 0.1386583866
H98: 4.8 | I98: 0.08272419473 | J98: 0.1011597928 | K98: 0.1363850175
H99: 4.85 | I99: =1-EXP(-2*$N$41/(H99^2)) -> 0.08109809899 | J99: 0.09927166369 | K99: 0.1341621913
H100: 4.9 | I100: 0.07951877504 | J100: 0.09743416108 | K100: 0.1319885943
H101: 4.95 | I101: 0.07798447443 | J101: 0.09564555795 | K101: 0.1298629475
H102: 5 | I102: 0.07649352828 | J102: 0.09390419704 | K102: 0.1277840055
H103: 5.05 | I103: 0.07504434298 | J103: 0.09220848774 | K103: 0.1257505562
H104: 5.1 | I104: 0.0736353963 | J104: 0.09055690305 | K104: 0.1237614202
H105: 5.15 | I105: 0.07226523362 | J105: 0.08894797672 | K105: 0.1218154498
H106: 5.2 | I106: 0.07093246442 | J106: 0.08738030049 | K106: 0.1199115286
H107: 5.25 | I107: 0.06963575899 | J107: 0.08585252156 | K107: 0.1180485707
H108: 5.3 | I108: 0.06837384534 | J108: 0.08436334005 | K108: 0.1162255199
H109: 5.35 | I109: 0.06714550625 | J109: 0.08291150665 | K109: 0.1144413491
H110: 5.4 | I110: 0.06594957649 | J110: 0.08149582044 | K110: 0.1126950599
H111: 5.45 | I111: 0.06478494025 | J111: 0.08011512669 | K111: 0.1109856812
H112: 5.5 | I112: 0.0636505287 | J112: 0.07876831488 | K112: 0.1093122692
H113: 5.55 | I113: 0.06254531761 | J113: 0.07745431673 | K113: 0.1076739062
H114: 5.6 | I114: 0.06146832523 | J114: 0.07617210438 | K114: 0.1060697001
H115: 5.65 | I115: 0.06041861021 | J115: 0.07492068866 | K115: 0.1044987841
H116: 5.7 | I116: 0.0593952696 | J116: 0.07369911739 | K116: 0.1029603153
H117: 5.75 | I117: 0.05839743709 | J117: 0.07250647379 | K117: 0.1014534745
H118: 5.8 | I118: 0.0574242812 | J118: 0.071341875 | K118: 0.09997746559
H119: 5.85 | I119: 0.05647500366 | J119: 0.07020447061 | K119: 0.09853151477
H120: 5.9 | I120: 0.05554883787 | J120: 0.06909344131 | K120: 0.0971148699
H121: 5.95 | I121: 0.05464504739 | J121: 0.06800799754 | K121: 0.09572679999
H122: 6 | I122: 0.05376292454 | J122: 0.06694737829 | K122: 0.09436659453
H123: 6.05 | I123: 0.05290178913 | J123: 0.06591084988 | K123: 0.09303356297
H124: 6.1 | I124: 0.05206098714 | J124: 0.06489770486 | K124: 0.09172703408
H125: 6.15 | I125: 0.05123988959 | J125: 0.06390726087 | K125: 0.09044635545
H126: 6.2 | I126: 0.05043789137 | J126: 0.06293885966 | K126: 0.08919089292
H127: 6.25 | I127: 0.04965441019 | J127: 0.06199186608 | K127: 0.08796003003
H128: 6.3 | I128: 0.04888888557 | J128: 0.06106566716 | K128: 0.08675316756
H129: 6.35 | I129: 0.04814077787 | J129: 0.0601596712 | K129: 0.08556972294
H130: 6.4 | I130: 0.04740956737 | J130: =1-EXP(-2*$Q$41/($H130^2+$Q$39^2)) -> 0.05927330691 | K130: =1-EXP(-2*$R$41/($H130^2+$R$39^2)) -> 0.08440912987
H131: 6.45 | I131: =1-EXP(-2*$N$41/(H131^2)) -> 0.04669475344 | J131: 0.05840602258 | K131: 0.08327083772
H132: =H131+0.05 -> 6.5 | I132: 0.04599585366 | J132: 0.05755728535 | K132: 0.08215431117
H133: 6.55 | I133: 0.04531240306 | J133: 0.05672658042 | K133: 0.0810590297
H134: 6.6 | I134: 0.04464395339 | J134: 0.05591341033 | K134: 0.07998448717
H135: 6.65 | I135: 0.04399007242 | J135: 0.05511729432 | K135: 0.07893019138
H136: 6.7 | I136: 0.0433503432 | J136: 0.05433776766 | K136: 0.07789566368
H137: 6.75 | I137: 0.04272436349 | J137: 0.053574381 | K137: 0.07688043855
H138: 6.8 | I138: 0.04211174513 | J138: 0.05282669983 | K138: 0.07588406319
H139: 6.85 | I139: 0.04151211344 | J139: 0.05209430386 | K139: 0.0749060972
H140: 6.9 | I140: 0.04092510668 | J140: 0.0513767865 | K140: 0.07394611215
H141: 6.95 | I141: 0.04035037551 | J141: 0.05067375435 | K141: 0.07300369126
H142: 7 | I142: 0.03978758252 | J142: 0.04998482667 | K142: 0.07207842903
H143: 7.05 | I143: 0.0392364017 | J143: 0.04930963493 | K143: 0.07116993093
H144: 7.1 | I144: 0.03869651803 | J144: 0.04864782234 | K144: 0.07027781304
H145: 7.15 | I145: 0.03816762702 | J145: 0.04799904342 | K145: 0.06940170179
H146: 7.2 | I146: 0.03764943427 | J146: 0.04736296357 | K146: 0.06854123357
H147: 7.25 | I147: 0.03714165514 | J147: 0.04673925869 | K147: 0.06769605452
H148: 7.3 | I148: 0.03664401431 | J148: 0.04612761478 | K148: 0.06686582019
H149: 7.35 | I149: 0.03615624541 | J149: 0.04552772755 | K149: 0.06605019528
H150: 7.4 | I150: 0.03567809075 | J150: 0.04493930211 | K150: 0.06524885334
H151: 7.45 | I151: 0.03520930091 | J151: 0.04436205262 | K151: 0.06446147658
H152: 7.5 | I152: 0.03474963445 | J152: 0.04379570193 | K152: 0.06368775552
H153: 7.55 | I153: 0.03429885763 | J153: 0.04323998132 | K153: 0.06292738882
H154: 7.6 | I154: 0.03385674407 | J154: 0.04269463015 | K154: 0.062180083
H155: 7.65 | I155: 0.03342307453 | J155: 0.04215939563 | K155: 0.06144555225
H156: 7.7 | I156: 0.03299763662 | J156: 0.04163403249 | K156: 0.06072351815
H157: 7.75 | I157: 0.03258022452 | J157: 0.04111830274 | K157: 0.0600137095
H158: 7.8 | I158: 0.0321706388 | J158: 0.04061197544 | K158: 0.05931586209
H159: 7.85 | I159: 0.03176868611 | J159: 0.0401148264 | K159: 0.05862971849
H160: 7.9 | I160: 0.03137417904 | J160: 0.03962663801 | K160: 0.05795502789
H161: 7.95 | I161: 0.03098693582 | J161: 0.03914719895 | K161: 0.05729154584
H162: 8 | I162: 0.0306067802 | J162: 0.03867630404 | K162: 0.05663903416
H163: 8.05 | I163: =1-EXP(-2*$N$41/(H163^2)) -> 0.0302335412 | J163: 0.03821375397 | K163: 0.05599726066
H164: 8.1 | I164: 0.02986705292 | J164: 0.03775935517 | K164: 0.05536599904
H165: 8.15 | I165: 0.02950715441 | J165: 0.03731291953 | K165: 0.05474502869
H166: 8.2 | I166: 0.02915368942 | J166: 0.03687426431 | K166: 0.05413413454
H167: 8.25 | I167: 0.02880650632 | J167: 0.03644321188 | K167: 0.05353310689
H168: 8.3 | I168: 0.02846545788 | J168: 0.03601958962 | K168: 0.05294174126
H169: 8.35 | I169: 0.02813040113 | J169: 0.03560322969 | K169: 0.05235983825
H170: 8.4 | I170: 0.02780119722 | J170: 0.03519396893 | K170: 0.05178720338
H171: 8.45 | I171: 0.02747771129 | J171: 0.03479164867 | K171: 0.05122364698
H172: 8.5 | I172: 0.02715981233 | J172: 0.0343961146 | K172: 0.05066898402
H173: 8.55 | I173: 0.02684737301 | J173: 0.03400721662 | K173: 0.05012303401
H174: 8.6 | I174: 0.02654026961 | J174: 0.03362480871 | K174: 0.04958562084
H175: 8.65 | I175: 0.02623838189 | J175: 0.0332487488 | K175: 0.04905657269
H176: 8.7 | I176: 0.02594159293 | J176: 0.03287889866 | K176: 0.0485357219
H177: 8.75 | I177: 0.02564978909 | J177: 0.03251512372 | K177: 0.04802290485
H178: 8.8 | I178: 0.02536285982 | J178: 0.03215729304 | K178: 0.04751796184
H179: 8.85 | I179: 0.02508069765 | J179: 0.03180527913 | K179: 0.04702073701
H180: 8.9 | I180: 0.02480319801 | J180: 0.03145895786 | K180: 0.0465310782
H181: 8.95 | I181: 0.02453025919 | J181: 0.03111820836 | K181: 0.04604883687
H182: 9 | I182: 0.02426178219 | J182: 0.03078291293 | K182: 0.045573868
H183: 9.05 | I183: 0.02399767072 | J183: 0.03045295691 | K183: 0.04510602999
H184: 9.1 | I184: 0.02373783103 | J184: 0.03012822863 | K184: 0.04464518456
H185: 9.15 | I185: 0.02348217187 | J185: 0.02980861927 | K185: 0.04419119667
H186: 9.2 | I186: 0.02323060439 | J186: 0.02949402283 | K186: 0.04374393444
H187: 9.25 | I187: 0.02298304211 | J187: 0.02918433597 | K187: 0.04330326904
H188: 9.3 | I188: 0.02273940079 | J188: 0.02887945802 | K188: 0.04286907462
H189: 9.35 | I189: 0.02249959839 | J189: 0.02857929083 | K189: 0.04244122826
H190: 9.4 | I190: 0.02226355498 | J190: 0.0282837387 | K190: 0.04201960985
H191: 9.45 | I191: 0.02203119273 | J191: 0.02799270836 | K191: 0.041604102
H192: 9.5 | I192: 0.02180243576 | J192: 0.02770610884 | K192: 0.04119459006
H193: 9.55 | I193: 0.02157721017 | J193: 0.02742385143 | K193: 0.04079096192
H194: 9.6 | I194: 0.0213554439 | J194: =1-EXP(-2*$Q$41/($H194^2+$Q$39^2)) -> 0.02714584962 | K194: =1-EXP(-2*$R$41/($H194^2+$R$39^2)) -> 0.04039310807
H195: 9.65 | I195: =1-EXP(-2*$N$41/(H195^2)) -> 0.02113706673 | J195: 0.02687201901 | K195: 0.04000092142
H196: =H195+0.05 -> 9.7 | I196: 0.02092201021 | J196: 0.02660227726 | K196: 0.03961429732
H197: 9.75 | I197: 0.0207102076 | J197: 0.02633654406 | K197: 0.03923313344
H198: 9.8 | I198: 0.02050159381 | J198: 0.02607474102 | K198: 0.03885732977
H199: 9.85 | I199: 0.02029610538 | J199: 0.02581679164 | K199: 0.03848678848
H200: 9.9 | I200: 0.02009368041 | J200: 0.02556262129 | K200: 0.03812141393
... 2 more rows

Sheet SULR_SOLR
A1: 5 | B1: Look Radius
A2: 20 | B2: Number of looks
A3: 50 | B3: Sigma Horizontal
A4: 10 | B4: Sigma Vertical
A5: =0.5*NLook*Radius*Radius/(SigmaU*SigmaV) -> 0.5 | B5: z
A6: =(1-EXP(-SQRT(A5)))^2 -> 0.2569793516 | B6: SULR theoretical
A7: 0.27 | B7: SULR by simulation
A8: =1-(1+SQRT(2*A5))*EXP(-SQRT(2*A5)) -> 0.2642411177 | B8: SOLR theoretical
B9: SOLR by simulation
A10: =1-EXP(-A5) -> 0.3934693403 | B10: EXHAUSTIVE upper bound

Sheet WedCake
A1: i | B1: ai | C1: Li | D1: P(Ri) | E1: Qi | G1: sigma | H1: 10
A2: 1 | B2: =$H$3*$H$2*(2*A2-1)/($H$4^2*$H$6) -> 80.07130309 | C2: =0.5*SQRT(B2)/$H$1 -> 0.4474128493 | D2: =(2*_xlfn.NORM.S.DIST(C2,TRUE)-1)^2 -> 0.1193170489 | E2: =D2*$H$8 -> 0.02684472924 | G2: W | H2: 1
A3: 2 | B3: =$H$3*$H$2*(2*A3-1)/($H$4^2*$H$6) -> 240.2139093 | C3: =0.5*SQRT(B3)/$H$1 -> 0.774941787 | D3: =(2*_xlfn.NORM.S.DIST(C3,TRUE)-1)^2 -> 0.315423698 | E3: =D3*$H$8+E2*(1-$H$8) -> 0.09177111109 | G3: Vt | H3: 1000
A4: 3 | B4: =$H$3*$H$2*(2*A4-1)/($H$4^2*$H$6) -> 400.3565155 | C4: 1.000445545 | D4: 0.4663593235 | E4: 0.1760484145 | G4: n | H4: 7
A5: 4 | B5: 560.4991216 | C5: 1.183743133 | D5: 0.5829097128 | E5: 0.2675867277 | G5: z | H5: =H2*H3/(2*PI()*H1^2) -> 1.591549431
A6: 5 | B6: 720.6417278 | C6: 1.342238548 | D6: 0.673189627 | E6: 0.358841918 | G6: dVW | H6: =SQRT(2*H5)/H4 -> 0.2548748737
A7: 6 | B7: 880.784334 | C7: 1.483900548 | D7: 0.7433279585 | E7: 0.4453460994 | G7: S | H7: =H2/H6 -> 3.923493851
A8: 7 | B8: 1040.92694 | C8: 1.613169969 | D8: 0.7979713372 | E8: 0.5246820293 | G8: P(D|R) | H8: =1-EXP(-H6) -> 0.2249865336 | J8: =2*_xlfn.NORM.S.DIST(SQRT(0.5*PI())*H2/H7,TRUE)-1 -> 0.250605815
A9: 8 | B9: 1201.069546 | C9: 1.732822514 | D9: 0.8406556949 | E9: 0.595771849 | G9: SOLR | H9: =1-(1+SQRT(2*H5))*EXP(-SQRT(2*H5)) -> 0.5324227918
A10: 9 | B10: 1361.212153 | C10: 1.844730436 | D10: 0.8740814626 | E10: 0.6583877643 | G10: SULR | H10: =(1-EXP(-SQRT(H5)))^2 -> 0.5137877636
A11: 10 | B11: 1521.354759 | C11: 1.950227396 | D11: 0.9003181788 | E11: 0.7128188496
A12: 11 | B12: 1681.497365 | C12: 2.050303249 | D12: 0.9209572044 | E12: 0.7596471765
A13: 12 | B13: 1841.639971 | C13: 2.145716647 | D13: 0.9372261443 | E13: 0.7996000529
A14: 13 | B14: 2001.782577 | C14: 2.237064247 | D14: 0.950074904 | E14: 0.8334548681
A15: 14 | B15: 2161.925183 | C15: 2.324825361 | D15: 0.960240658 | E15: 0.8619799634
